[Event "FIDE Grand Swiss 2023"]
[Site "Villa Marina, Douglas, Isle of Man, Isle Of Man"]
[Date "2023.11.02"]
[Round "8.8"]
[White "Sarana, Alexey"]
[Black "Rapport, Richard"]
[Result "1-0"]
[TimeControl "40/90 + 30 + 30s/move"]
[WhiteFideId "24133795"]
[BlackFideId "738590"]
[WhiteElo "2682"]
[BlackElo "2752"]

1. d4 {[%clk 01:40:56]} {[%emt 00:00:02]} f5 {[%clk 01:40:03]} {[%emt
00:00:58]} 2. c4 {[%clk 01:40:44]} {[%emt 00:00:43]} Nf6 {[%clk 01:38:59]}
{[%emt 00:01:34]} 3. Nf3 {[%clk 01:41:04]} {[%emt 00:00:10]} g6 {[%clk
01:38:51]} {[%emt 00:00:38]} 4. Nc3 {[%clk 01:40:27]} {[%emt 00:01:06]} d6
{[%clk 01:38:30]} {[%emt 00:00:52]} 5. g3 {[%clk 01:40:41]} {[%emt 00:00:15]}
Bg7 {[%clk 01:38:50]} {[%emt 00:00:10]} 6. Bg2 {[%clk 01:41:06]} {[%emt
00:00:05]} O-O {[%clk 01:39:13]} {[%emt 00:00:07]} 7. O-O {[%clk 01:41:23]}
{[%emt 00:00:13]} c6 {[%clk 01:39:25]} {[%emt 00:00:19]} 8. Rb1 {[%clk
01:35:05]} {[%emt 00:06:48]} a5 {[%clk 01:39:10]} {[%emt 00:00:45]} 9. Qb3
{[%clk 01:35:19]} {[%emt 00:00:16]} Na6 {[%clk 01:23:06]} {[%emt 00:16:34]} 10.
Na4 {[%clk 01:34:51]} {[%emt 00:00:57]} Nc7 {[%clk 01:04:34]} {[%emt 00:19:03]}
11. Nb6 {[%clk 01:29:57]} {[%emt 00:05:24]} a4 {[%clk 01:02:33]} {[%emt
00:02:31]} 12. Nxa4 {[%clk 01:23:42]} {[%emt 00:06:44]} b5 {[%clk 01:00:37]}
{[%emt 00:02:27]} 13. Nb6 {[%clk 01:20:31]} {[%emt 00:03:41]} bxc4 {[%clk
01:00:11]} {[%emt 00:00:56]} 14. Qc2 {[%clk 01:19:46]} {[%emt 00:01:16]} Ra6
{[%clk 00:51:23]} {[%emt 00:09:18]} 15. Nxc8 {[%clk 01:19:21]} {[%emt
00:00:54]} Qxc8 {[%clk 00:50:50]} {[%emt 00:01:03]} 16. Qxc4+ {[%clk 01:19:19]}
{[%emt 00:00:32]} Qe6 {[%clk 00:49:52]} {[%emt 00:01:28]} 17. b3 {[%clk
00:43:41]} {[%emt 00:36:08]} Ne4 {[%clk 00:32:51]} {[%emt 00:17:31]} 18. Qc2
{[%clk 00:39:03]} {[%emt 00:05:08]} Nd5 {[%clk 00:26:02]} {[%emt 00:07:19]} 19.
Ng5 {[%clk 00:33:57]} {[%emt 00:05:35]} Nxg5 {[%clk 00:25:06]} {[%emt
00:01:27]} 20. Bxg5 {[%clk 00:34:25]} {[%emt 00:00:02]} f4 {[%clk 00:18:58]}
{[%emt 00:06:38]} 21. Bxd5 {[%clk 00:29:22]} {[%emt 00:05:34]} Qxd5 {[%clk
00:18:29]} {[%emt 00:00:58]} 22. Bxf4 {[%clk 00:29:43]} {[%emt 00:00:09]} Qxd4
{[%clk 00:15:39]} {[%emt 00:03:19]} 23. a4 {[%clk 00:25:56]} {[%emt 00:04:18]}
c5 {[%clk 00:10:53]} {[%emt 00:05:16]} 24. Rfd1 {[%clk 00:25:07]} {[%emt
00:01:19]} Qb4 {[%clk 00:09:30]} {[%emt 00:01:53]} 25. Bd2 {[%clk 00:25:09]}
{[%emt 00:00:27]} Qg4 {[%clk 00:09:36]} {[%emt 00:00:24]} 26. Qd3 {[%clk
00:24:49]} {[%emt 00:00:51]} c4 {[%clk 00:08:10]} {[%emt 00:01:56]} 27. Qd5+
{[%clk 00:18:52]} {[%emt 00:06:26]} Kh8 {[%clk 00:08:32]} {[%emt 00:00:08]} 28.
Qb5 {[%clk 00:18:44]} {[%emt 00:00:39]} Raa8 {[%clk 00:06:23]} {[%emt
00:02:39]} 29. bxc4 {[%clk 00:18:48]} {[%emt 00:00:26]} Qxe2 {[%clk 00:01:25]}
{[%emt 00:05:28]} 30. Be3 {[%clk 00:19:16]} Qa2 {[%clk 00:01:14]} {[%emt
00:00:41]} 31. Qd7 {[%clk 00:16:26]} {[%emt 00:03:20]} Bf6 {[%clk 00:01:36]}
{[%emt 00:00:08]} 32. Rb4 {[%clk 00:14:01]} {[%emt 00:02:55]} Rfd8 {[%clk
00:01:35]} {[%emt 00:00:31]} 33. Qe6 {[%clk 00:13:20]} {[%emt 00:01:11]} Qc2
{[%clk 00:00:59]} {[%emt 00:01:06]} 34. Rc1 {[%clk 00:13:10]} {[%emt 00:00:40]}
Qa2 {[%clk 00:00:50]} {[%emt 00:00:39]} 35. Rb7 {[%clk 00:13:02]} {[%emt
00:00:38]} Rf8 {[%clk 00:00:32]} {[%emt 00:00:49]} 36. Rxe7 {[%clk 00:12:49]}
{[%emt 00:00:43]} Qxa4 {[%clk 00:00:56]} {[%emt 00:00:05]} 37. Bh6 {[%clk
00:11:23]} {[%emt 00:01:56]} Qa3 {[%clk 00:50:30]} {[%emt 00:00:56]} 1-0

[Event "FIDE Grand Swiss 2023"]
[Site "Villa Marina, Douglas, Isle of Man, Isle Of Man"]
[Date "2023.11.02"]
[Round "8.9"]
[White "Aronian, Levon"]
[Black "Niemann, Hans Moke"]
[Result "1/2-1/2"]
[TimeControl "40/90 + 30 + 30s/move"]
[WhiteFideId "13300474"]
[BlackFideId "2093596"]
[WhiteElo "2742"]
[BlackElo "2667"]

1. e4 {[%clk 01:40:55]} {[%emt 00:00:04]} e5 {[%clk 01:40:46]} {[%emt
00:00:14]} 2. Nf3 {[%clk 01:41:19]} {[%emt 00:00:07]} Nc6 {[%clk 01:41:08]}
{[%emt 00:00:06]} 3. Bb5 {[%clk 01:41:42]} {[%emt 00:00:08]} Nf6 {[%clk
01:41:22]} {[%emt 00:00:16]} 4. O-O {[%clk 01:41:59]} {[%emt 00:00:13]} Nxe4
{[%clk 01:41:44]} {[%emt 00:00:07]} 5. d4 {[%clk 01:42:27]} {[%emt 00:00:04]}
Nd6 {[%clk 01:42:01]} {[%emt 00:00:12]} 6. Bxc6 {[%clk 01:42:52]} {[%emt
00:00:06]} dxc6 {[%clk 01:42:24]} {[%emt 00:00:06]} 7. dxe5 {[%clk 01:43:15]}
{[%emt 00:00:08]} Nf5 {[%clk 01:42:45]} {[%emt 00:00:07]} 8. Qxd8+ {[%clk
01:43:38]} {[%emt 00:00:09]} Kxd8 {[%clk 01:43:04]} {[%emt 00:00:08]} 9. Rd1+
{[%clk 01:43:58]} {[%emt 00:00:13]} Ke8 {[%clk 01:43:26]} {[%emt 00:00:07]} 10.
Nc3 {[%clk 01:44:25]} {[%emt 00:00:03]} Be7 {[%clk 01:41:33]} {[%emt 00:02:22]}
11. Bg5 {[%clk 01:44:40]} {[%emt 00:00:16]} h6 {[%clk 01:34:44]} {[%emt
00:07:19]} 12. Bxe7 {[%clk 01:44:54]} {[%emt 00:00:17]} Nxe7 {[%clk 01:35:06]}
{[%emt 00:00:07]} 13. Nd4 {[%clk 01:44:20]} {[%emt 00:01:05]} Nf5 {[%clk
01:34:58]} {[%emt 00:00:37]} 14. Nce2 {[%clk 01:39:11]} {[%emt 00:05:39]} Ke7
{[%clk 01:32:07]} {[%emt 00:03:22]} 15. f4 {[%clk 01:33:06]} {[%emt 00:06:34]}
Rd8 {[%clk 01:22:51]} {[%emt 00:09:46]} 16. Kf2 {[%clk 01:27:02]} {[%emt
00:06:34]} Nxd4 {[%clk 01:22:22]} {[%emt 00:01:00]} 17. Nxd4 {[%clk 01:25:46]}
{[%emt 00:01:46]} Bg4 {[%clk 01:18:11]} {[%emt 00:04:40]} 18. Ne2 {[%clk
01:25:13]} {[%emt 00:01:04]} Bf5 {[%clk 01:17:45]} {[%emt 00:00:54]} 19. Nd4
{[%clk 01:25:00]} {[%emt 00:00:44]} Bg4 {[%clk 01:18:02]} {[%emt 00:00:14]} 20.
Ne2 {[%clk 01:25:23]} {[%emt 00:00:07]} Bf5 {[%clk 01:18:22]} {[%emt 00:00:10]}
21. Nd4 {[%clk 01:25:21]} {[%emt 00:00:33]} Bg4 {[%emt 00:00:54]} 1/2-1/2

[Event "FIDE Grand Swiss 2023"]
[Site "Villa Marina, Douglas, Isle of Man, Isle Of Man"]
[Date "2023.11.02"]
[Round "8.10"]
[White "Cheparinov, Ivan"]
[Black "Duda, Jan-Krzysztof"]
[Result "1-0"]
[TimeControl "40/90 + 30 + 30s/move"]
[WhiteFideId "2905540"]
[BlackFideId "1170546"]
[WhiteElo "2658"]
[BlackElo "2726"]

1. e4 {[%clk 01:40:56]} {[%emt 00:00:03]} c5 {[%clk 01:40:56]} {[%emt
00:00:05]} 2. Nf3 {[%clk 01:41:22]} {[%emt 00:00:04]} d6 {[%clk 01:41:21]}
{[%emt 00:00:05]} 3. d4 {[%clk 01:41:43]} {[%emt 00:00:09]} cxd4 {[%clk
01:41:47]} {[%emt 00:00:04]} 4. Nxd4 {[%clk 01:42:09]} {[%emt 00:00:03]} Nf6
{[%clk 01:42:11]} {[%emt 00:00:07]} 5. Nc3 {[%clk 01:42:35]} {[%emt 00:00:03]}
a6 {[%clk 01:42:36]} {[%emt 00:00:06]} 6. Be3 {[%clk 01:42:24]} {[%emt
00:00:40]} e5 {[%clk 01:42:59]} {[%emt 00:00:07]} 7. Nb3 {[%clk 01:42:48]}
{[%emt 00:00:06]} Be6 {[%clk 01:43:24]} {[%emt 00:00:04]} 8. f3 {[%clk
01:43:13]} {[%emt 00:00:05]} h5 {[%clk 01:43:48]} {[%emt 00:00:06]} 9. Qd2
{[%clk 01:42:30]} {[%emt 00:01:13]} Nbd7 {[%clk 01:44:10]} {[%emt 00:00:08]} 10.
Nd5 {[%clk 01:42:45]} {[%emt 00:00:15]} Bxd5 {[%clk 01:41:02]} {[%emt
00:03:39]} 11. exd5 {[%clk 01:43:08]} {[%emt 00:00:06]} g6 {[%clk 01:41:26]}
{[%emt 00:00:06]} 12. O-O-O {[%clk 01:43:26]} {[%emt 00:00:12]} Nb6 {[%clk
01:41:19]} {[%emt 00:00:37]} 13. Kb1 {[%clk 01:43:22]} {[%emt 00:00:34]} Nbxd5
{[%clk 01:38:05]} {[%emt 00:03:45]} 14. Bg5 {[%clk 01:43:37]} {[%emt 00:00:14]}
Be7 {[%clk 01:38:23]} {[%emt 00:00:12]} 15. Bd3 {[%clk 01:43:43]} {[%emt
00:00:24]} Qc7 {[%clk 01:37:28]} {[%emt 00:01:26]} 16. Rhe1 {[%clk 01:42:21]}
{[%emt 00:01:52]} O-O-O {[%clk 01:22:00]} {[%emt 00:15:58]} 17. c4 {[%clk
01:41:07]} {[%emt 00:01:44]} Nb6 {[%clk 01:20:19]} {[%emt 00:02:11]} 18. c5
{[%clk 01:39:34]} {[%emt 00:02:03]} Nbd7 {[%clk 00:53:29]} {[%emt 00:27:20]} 19.
Bxg6 {[%clk 01:14:59]} {[%emt 00:25:06]} dxc5 {[%clk 00:53:01]} {[%emt
00:00:57]} 20. Bxf7 {[%clk 01:14:31]} {[%emt 00:00:58]} Kb8 {[%clk 00:52:39]}
{[%emt 00:00:52]} 21. Qe2 {[%clk 01:09:49]} {[%emt 00:05:12]} Rh7 {[%clk
00:39:38]} {[%emt 00:13:31]} 22. Be6 {[%clk 01:08:37]} {[%emt 00:01:43]} h4
{[%clk 00:31:23]} {[%emt 00:08:45]} 23. f4 {[%clk 00:59:08]} {[%emt 00:09:59]}
Nh5 {[%clk 00:12:37]} {[%emt 00:19:16]} 24. Bf5 {[%clk 00:25:58]} {[%emt
00:33:39]} Bxg5 {[%clk 00:12:27]} {[%emt 00:00:41]} 25. Bxh7 {[%clk 00:24:47]}
{[%emt 00:01:41]} Nxf4 {[%clk 00:12:51]} {[%emt 00:00:06]} 26. Qg4 {[%clk
00:25:05]} {[%emt 00:00:12]} Bf6 {[%clk 00:06:54]} {[%emt 00:06:26]} 27. Bf5
{[%clk 00:22:33]} {[%emt 00:03:02]} c4 {[%clk 00:06:41]} {[%emt 00:00:43]} 28.
Rxd7 {[%clk 00:21:42]} {[%emt 00:01:21]} Rxd7 {[%clk 00:07:05]} {[%emt
00:00:07]} 29. Bxd7 {[%clk 00:22:07]} {[%emt 00:00:04]} cxb3 {[%clk 00:06:33]}
{[%emt 00:01:02]} 30. axb3 {[%clk 00:22:17]} {[%emt 00:00:20]} e4 {[%clk
00:06:03]} {[%emt 00:00:59]} 31. Rf1 {[%clk 00:08:40]} {[%emt 00:14:07]} Be5
{[%clk 00:04:49]} {[%emt 00:01:45]} 32. g3 {[%clk 00:08:49]} {[%emt 00:00:20]}
hxg3 {[%clk 00:03:33]} {[%emt 00:01:47]} 33. hxg3 {[%clk 00:09:18]} {[%emt
00:00:01]} Nd3 {[%clk 00:02:42]} {[%emt 00:01:21]} 34. Qxe4 {[%clk 00:06:29]}
{[%emt 00:03:18]} Nc5 {[%clk 00:02:16]} {[%emt 00:00:56]} 35. Qd5 {[%clk
00:02:42]} {[%emt 00:04:17]} Nxd7 {[%clk 00:01:34]} {[%emt 00:01:12]} 36. Rf7
{[%clk 00:03:08]} {[%emt 00:00:04]} Nb6 {[%clk 00:01:13]} {[%emt 00:00:52]} 37.
Qf3 {[%clk 00:00:46]} {[%emt 00:02:51]} Qc6 {[%clk 00:00:38]} {[%emt 00:01:06]}
38. Qxc6 {[%clk 00:01:12]} {[%emt 00:00:04]} bxc6 {[%clk 00:01:03]} {[%emt
00:00:05]} 39. g4 {[%clk 00:01:39]} {[%emt 00:00:02]} Nd5 {[%clk 00:00:36]}
{[%emt 00:00:57]} 40. g5 {[%clk 00:02:05]} {[%emt 00:00:05]} Nf4 {[%clk
00:00:56]} {[%emt 00:00:10]} 41. Re7 {[%clk 00:50:08]} {[%emt 00:02:27]} Bc7
{[%clk 00:47:04]} {[%emt 00:04:20]} 42. Rg7 {[%clk 00:41:53]} {[%emt 00:08:46]}
Be5 {[%clk 00:46:42]} {[%emt 00:00:52]} 43. Re7 {[%clk 00:38:29]} {[%emt
00:03:54]} Bc7 {[%clk 00:46:58]} {[%emt 00:00:14]} 44. Re8+ {[%clk 00:35:32]}
{[%emt 00:03:27]} Kb7 {[%clk 00:45:13]} {[%emt 00:02:15]} 45. Kc2 {[%clk
00:35:26]} {[%emt 00:00:36]} Bd6 {[%clk 00:41:17]} {[%emt 00:04:26]} 46. g6
{[%clk 00:35:00]} {[%emt 00:00:57]} Nxg6 {[%clk 00:40:22]} {[%emt 00:01:25]} 47.
Re6 {[%clk 00:35:24]} {[%emt 00:00:05]} Bb4 {[%clk 00:37:28]} {[%emt 00:03:24]}
48. Rxg6 {[%clk 00:35:49]} {[%emt 00:00:05]} Kc7 {[%clk 00:37:52]} {[%emt
00:00:06]} 49. Kd3 {[%clk 00:35:23]} {[%emt 00:00:56]} Kd7 {[%clk 00:36:26]}
{[%emt 00:01:57]} 50. Rg4 {[%clk 00:29:10]} {[%emt 00:06:43]} 1-0

[Event "FIDE Grand Swiss 2023"]
[Site "Villa Marina, Douglas, Isle of Man, Isle Of Man"]
[Date "2023.11.02"]
[Round "8.11"]
[White "Vitiugov, Nikita"]
[Black "Sindarov, Javokhir"]
[Result "1/2-1/2"]
[TimeControl "40/90 + 30 + 30s/move"]
[WhiteFideId "4152956"]
[BlackFideId "14205483"]
[WhiteElo "2711"]
[BlackElo "2658"]

1. d4 {[%clk 01:40:55]} {[%emt 00:00:03]} Nf6 {[%clk 01:40:56]} {[%emt
00:00:05]} 2. c4 {[%clk 01:41:19]} {[%emt 00:00:06]} g6 {[%clk 01:41:23]}
{[%emt 00:00:03]} 3. Nc3 {[%clk 01:41:37]} {[%emt 00:00:12]} Bg7 {[%clk
01:41:48]} {[%emt 00:00:06]} 4. e4 {[%clk 01:41:59]} {[%emt 00:00:07]} d6
{[%clk 01:42:13]} {[%emt 00:00:06]} 5. Nf3 {[%clk 01:41:59]} {[%emt 00:00:29]}
O-O {[%clk 01:42:34]} {[%emt 00:00:10]} 6. Be2 {[%clk 01:42:18]} {[%emt
00:00:09]} e5 {[%clk 01:42:54]} {[%emt 00:00:11]} 7. O-O {[%clk 01:42:22]}
{[%emt 00:00:25]} exd4 {[%clk 01:42:54]} {[%emt 00:00:31]} 8. Nxd4 {[%clk
01:42:44]} {[%emt 00:00:08]} Nc6 {[%clk 01:43:21]} {[%emt 00:00:03]} 9. Be3
{[%clk 01:39:08]} {[%emt 00:04:06]} Re8 {[%clk 01:43:31]} {[%emt 00:00:20]} 10.
f3 {[%clk 01:38:20]} {[%emt 00:01:18]} Nh5 {[%clk 01:43:57]} {[%emt 00:00:04]}
11. Qd2 {[%clk 01:37:48]} {[%emt 00:01:02]} Nxd4 {[%clk 01:42:55]} {[%emt
00:01:33]} 12. Bxd4 {[%clk 01:37:35]} {[%emt 00:00:42]} Nf4 {[%clk 01:43:23]}
{[%emt 00:00:03]} 13. Rf2 {[%clk 01:36:19]} {[%emt 00:01:45]} Bxd4 {[%clk
01:43:19]} {[%emt 00:00:34]} 14. Qxd4 {[%clk 01:36:34]} {[%emt 00:00:14]} Qg5
{[%clk 01:43:45]} {[%emt 00:00:05]} 15. Nd5 {[%clk 01:36:09]} {[%emt 00:00:54]}
Nxd5 {[%clk 01:43:42]} {[%emt 00:00:34]} 16. cxd5 {[%clk 01:36:32]} {[%emt
00:00:07]} Bd7 {[%clk 01:44:09]} {[%emt 00:00:03]} 17. Rd1 {[%clk 01:34:22]}
{[%emt 00:02:39]} f5 {[%clk 01:26:54]} {[%emt 00:17:46]} 18. f4 {[%emt
00:04:37]} Qh4 {[%emt 00:00:55]} 19. exf5 {[%clk 01:06:16]} {[%emt 00:26:40]}
Bxf5 {[%clk 01:24:03]} {[%emt 00:00:45]} 20. Bd3 {[%clk 01:02:53]} {[%emt
00:03:53]} Bxd3 {[%clk 00:58:43]} {[%emt 00:25:50]} 21. Qxd3 {[%clk 01:02:37]}
{[%emt 00:00:45]} Re7 {[%clk 00:59:03]} {[%emt 00:00:11]} 22. f5 {[%clk
00:51:38]} {[%emt 00:11:29]} Rf8 {[%clk 00:58:59]} {[%emt 00:00:34]} 23. Rdf1
{[%clk 00:51:03]} {[%emt 00:01:05]} Ref7 {[%clk 00:58:30]} {[%emt 00:01:00]} 24.
g3 {[%clk 00:48:52]} {[%emt 00:02:40]} Qf6 {[%clk 00:58:36]} {[%emt 00:00:22]}
25. fxg6 {[%clk 00:45:36]} {[%emt 00:03:48]} Qxg6 {[%clk 00:58:49]} {[%emt
00:00:18]} 26. Rxf7 {[%clk 00:39:29]} {[%emt 00:06:37]} Rxf7 {[%clk 00:58:59]}
{[%emt 00:00:20]} 27. Qxg6+ {[%clk 00:31:08]} {[%emt 00:08:50]} hxg6 {[%clk
00:59:16]} {[%emt 00:00:14]} 28. Rc1 {[%clk 00:30:37]} {[%emt 00:01:01]} c5
{[%clk 00:49:44]} {[%emt 00:10:01]} 29. dxc6 {[%clk 00:30:15]} {[%emt
00:00:52]} Rc7 {[%clk 00:50:12]} {[%emt 00:00:02]} 30. Kf2 {[%clk 00:25:43]}
{[%emt 00:05:02]} Rxc6 {[%clk 00:50:17]} {[%emt 00:00:25]} 31. Rxc6 {[%clk
00:21:12]} {[%emt 00:05:01]} bxc6 {[%clk 00:50:44]} {[%emt 00:00:04]} 32. Ke3
{[%clk 00:19:49]} {[%emt 00:01:52]} Kf7 {[%clk 00:51:08]} {[%emt 00:00:06]} 33.
b4 {[%clk 00:12:50]} {[%emt 00:07:29]} Ke6 {[%clk 00:51:02]} {[%emt 00:00:36]}
34. h4 {[%clk 00:09:47]} {[%emt 00:03:33]} Kf5 {[%clk 00:50:55]} {[%emt
00:00:37]} 35. Kf3 {[%clk 00:10:13]} {[%emt 00:00:04]} a6 {[%clk 00:51:13]}
{[%emt 00:00:13]} 36. g4+ {[%clk 00:10:34]} {[%emt 00:00:08]} Ke5 {[%clk
00:51:40]} {[%emt 00:00:03]} 37. Ke3 {[%clk 00:10:28]} {[%emt 00:00:37]} Kf6
{[%clk 00:51:55]} {[%emt 00:00:14]} 38. Ke4 {[%clk 00:08:33]} {[%emt 00:02:25]}
Ke6 {[%clk 00:52:16]} {[%emt 00:00:09]} 39. Kd4 {[%clk 00:07:47]} {[%emt
00:01:16]} Kf6 {[%clk 00:52:40]} {[%emt 00:00:06]} 40. Ke4 {[%clk 00:08:01]}
{[%emt 00:00:16]} Ke6 {[%clk 00:53:06]} 1/2-1/2

[Event "FIDE Grand Swiss 2023"]
[Site "Villa Marina, Douglas, Isle of Man, Isle Of Man"]
[Date "2023.11.02"]
[Round "8.12"]
[White "Ter-Sahakyan, Samvel"]
[Black "Maghsoodloo, Parham"]
[Result "0-1"]
[TimeControl "40/90 + 30 + 30s/move"]
[WhiteFideId "13302531"]
[BlackFideId "12539929"]
[WhiteElo "2618"]
[BlackElo "2707"]

1. e4 {[%clk 01:40:57]} {[%emt 00:00:02]} e5 {[%clk 01:40:54]} {[%emt
00:00:06]} 2. Nf3 {[%clk 01:41:21]} {[%emt 00:00:05]} Nc6 {[%clk 01:41:21]}
{[%emt 00:00:04]} 3. Bb5 {[%clk 01:41:45]} {[%emt 00:00:06]} a6 {[%clk
01:41:48]} {[%emt 00:00:04]} 4. Ba4 {[%clk 01:42:09]} {[%emt 00:00:05]} Nf6
{[%clk 01:42:15]} {[%emt 00:00:04]} 5. O-O {[%clk 01:42:31]} {[%emt 00:00:07]}
Be7 {[%clk 01:42:38]} {[%emt 00:00:07]} 6. Re1 {[%clk 01:42:14]} {[%emt
00:00:47]} b5 {[%clk 01:43:00]} {[%emt 00:00:08]} 7. Bb3 {[%clk 01:42:39]}
{[%emt 00:00:05]} d6 {[%clk 01:43:27]} {[%emt 00:00:03]} 8. c3 {[%clk
01:41:54]} {[%emt 00:01:15]} O-O {[%clk 01:43:51]} {[%emt 00:00:07]} 9. h3
{[%clk 01:42:06]} {[%emt 00:00:17]} Bb7 {[%clk 01:44:16]} {[%emt 00:00:06]} 10.
d4 {[%clk 01:37:11]} {[%emt 00:05:24]} Re8 {[%clk 01:44:39]} {[%emt 00:00:07]}
11. Ng5 {[%clk 01:35:48]} {[%emt 00:01:52]} Rf8 {[%clk 01:44:53]} {[%emt
00:00:16]} 12. Nf3 {[%clk 01:36:13]} {[%emt 00:00:06]} Re8 {[%clk 01:45:21]}
{[%emt 00:00:03]} 13. a3 {[%clk 01:35:59]} {[%emt 00:00:43]} h6 {[%clk
01:45:42]} {[%emt 00:00:09]} 14. Ba2 {[%clk 01:34:25]} {[%emt 00:02:04]} Bf8
{[%clk 01:45:56]} {[%emt 00:00:15]} 15. d5 {[%clk 01:34:24]} {[%emt 00:00:31]}
Ne7 {[%clk 01:46:22]} {[%emt 00:00:05]} 16. c4 {[%clk 01:29:34]} {[%emt
00:05:20]} c6 {[%clk 01:46:43]} {[%emt 00:00:09]} 17. Nc3 {[%clk 01:22:00]}
{[%emt 00:08:04]} bxc4 {[%clk 01:47:01]} {[%emt 00:00:12]} 18. dxc6 {[%clk
01:21:01]} {[%emt 00:01:29]} Bxc6 {[%clk 01:47:26]} {[%emt 00:00:05]} 19. Bxc4
{[%clk 01:20:08]} {[%emt 00:01:22]} Qc7 {[%clk 01:47:51]} {[%emt 00:00:05]} 20.
Qb3 {[%clk 01:05:31]} {[%emt 00:15:07]} Ng6 {[%clk 01:41:47]} {[%emt 00:06:34]}
21. Bd2 {[%clk 00:54:20]} {[%emt 00:11:41]} Rec8 {[%clk 01:30:03]} {[%emt
00:12:14]} 22. Rac1 {[%clk 00:52:29]} {[%emt 00:02:21]} Rab8 {[%clk 01:26:57]}
{[%emt 00:03:36]} 23. Qc2 {[%clk 00:51:17]} {[%emt 00:01:42]} Qa7 {[%clk
01:16:00]} {[%emt 00:11:28]} 24. b4 {[%clk 00:35:42]} {[%emt 00:16:04]} Bb5
{[%clk 00:51:12]} {[%emt 00:25:18]} 25. Bb3 {[%clk 00:27:56]} {[%emt 00:08:16]}
Qb7 {[%clk 00:49:41]} {[%emt 00:02:01]} 26. Qb1 {[%clk 00:19:22]} {[%emt
00:09:04]} Bc4 {[%clk 00:35:16]} {[%emt 00:14:55]} 27. Bxc4 {[%clk 00:18:21]}
{[%emt 00:01:31]} Rxc4 {[%clk 00:35:41]} {[%emt 00:00:05]} 28. Nd5 {[%clk
00:14:57]} {[%emt 00:03:55]} Nxe4 {[%clk 00:36:03]} {[%emt 00:00:07]} 29. Rxc4
{[%clk 00:14:12]} {[%emt 00:01:15]} Nxd2 {[%clk 00:36:27]} {[%emt 00:00:06]} 30.
Nf6+ {[%clk 00:11:09]} {[%emt 00:03:33]} gxf6 {[%clk 00:36:53]} {[%emt
00:00:04]} 31. Nxd2 {[%clk 00:11:37]} {[%emt 00:00:02]} d5 {[%clk 00:37:17]}
{[%emt 00:00:06]} 32. Rc3 {[%clk 00:10:59]} {[%emt 00:01:07]} e4 {[%clk
00:37:23]} {[%emt 00:00:26]} 33. Nb3 {[%clk 00:09:08]} {[%emt 00:02:20]} f5
{[%clk 00:37:47]} {[%emt 00:00:06]} 34. Qd1 {[%clk 00:05:48]} {[%emt 00:03:49]}
Bg7 {[%clk 00:32:20]} {[%emt 00:05:58]} 35. Nc5 {[%clk 00:04:15]} {[%emt
00:02:03]} Qe7 {[%clk 00:30:32]} {[%emt 00:02:18]} 36. Rg3 {[%clk 00:04:20]}
{[%emt 00:00:24]} Rd8 {[%clk 00:30:55]} {[%emt 00:00:07]} 37. Qh5 {[%clk
00:03:09]} {[%emt 00:01:42]} Qf6 {[%clk 00:30:47]} {[%emt 00:00:39]} 38. Rb3
{[%clk 00:02:49]} {[%emt 00:00:49]} Nf4 {[%clk 00:30:10]} {[%emt 00:01:06]} 39.
Qd1 {[%clk 00:03:13]} {[%emt 00:00:07]} d4 {[%clk 00:30:35]} {[%emt 00:00:04]}
40. Rg3 {[%clk 00:01:46]} {[%emt 00:01:58]} d3 {[%clk 00:29:57]} {[%emt
00:01:08]} 41. Kh1 {[%clk 00:48:28]} {[%emt 00:03:48]} Qb2 {[%clk 01:12:06]}
{[%emt 00:08:19]} 42. Rf1 {[%clk 00:45:29]} {[%emt 00:03:31]} Ne2 {[%clk
01:01:07]} {[%emt 00:11:29]} 43. Re3 {[%clk 00:45:06]} {[%emt 00:00:52]} Nc3
{[%clk 01:01:25]} {[%emt 00:00:12]} 0-1